Cogmind - Beta 17 @@@ ROGUE MODE // 2026.08.01 @ 18:14:51 Player: OBLIQUE Result: Destroyed by G-67 Veteran with Plasma Rifle Performance ------------- Evolutions (6) 3000 Regions Visited (6) 1200 Robots Destroyed (21) 105 Value Destroyed (836) 836 Prototype IDs (9) 180 Alien Tech Used (0) 0 Bonus (1148) 1148 TOTAL SCORE: 6469 Bonus ------- Follower Combat Kills 148 Entered Garrisons 200 Registered with UFD 300 Met Optimus in HQ 500 Cogmind --------- Core Integrity 0/1150 Matter 265/300 Energy 100/100 System Corruption 10% Temperature Cool (12) Movement Core (50) Location -4/Garrison Parts ------- > --- POWER (1) -------- (None) > --- PROPULSION (4) --- (None) > --- UTILITY (11) ----- Advanced Terrain Scan Processor Improved Targeting Computer > --- WEAPON (3) ------- (None) > --- INVENTORY (5) ---- High-capacity Matter Pod (0) High-capacity Matter Pod (0) Relay Coupler [Heavy] (4) Dispersion Rifle Makeshift Hammer Peak State ------------ > --- POWER ------------ Light Antimatter Reactor > --- PROPULSION ------- Biometal Heavy Treads Armored Wheel Overtuned Scrapsphere > --- UTILITY ---------- Scrap Suit Improved Thermal Generator Humpback Active Sensor Suite Advanced Terrain Scan Processor Improved Targeting Computer Weapon Cycler > --- WEAPON ----------- Coil Gun Overtuned Coil Gun Heavy Gauss Cannon > --- INVENTORY -------- Nuclear Core Makeshift Power Source Makeshift Power Source Overtuned Treads Overtuned Treads Biometal Heavy Treads Overtuned Scrapsphere Scrap Suit High-capacity Matter Pod High-capacity Matter Pod High-capacity Matter Pod Improved Sensor Array Advanced Signal Interpreter Advanced Terrain Scanner Relay Coupler [Heavy] Relay Coupler [Heavy] Relay Coupler [Behemoth] Relay Coupler [Behemoth] Relay Coupler [Proto] Dispersion Rifle Advanced Plasma Cannon Advanced Plasma Cannon Flak Gun Advanced Assault Cannon Slug Cannon Datajack Makeshift Hammer DRS Beacon [Rating: 113] Favorites ----------- Power Nuclear Core Engine Ion Engine Power Core Nuclear Core Reactor Light Antimatter Reactor Propulsion Wheel Treads Light Treads Wheel Wheel Utility Humpback Device Heat Sink Storage Humpback Processor Advanced Terrain Scan Processor Hackware Makeshift System Shield Weapon Advanced Assault Cannon Energy Gun Particle Gun Energy Cannon Improved EM Pulse Cannon Ballistic Gun Flak Gun Ballistic Cannon Advanced Assault Cannon Impact Weapon Makeshift Hammer Build | -11 -10 -10 -7 -5 -4 -4 ------- Run | Yrd Mat Sub Scr Fac Fac Gar Slots Evolved 12 | . . . . 10 2 . Power . | . . . . . . . Propulsion 2 | . . . . 1 1 . Utility 9 | . . . . 8 1 . Weapon 1 | . . . . 1 . . Parts Attached 51 | 6 6 1 8 11 2 17 Power 4 | 1 1 . 1 . . 1 Engine 2 | 1 1 . . . . . Core 1 | . . . 1 . . . Reactor 1 | . . . . . . 1 Propulsion 10 | 2 . . 3 . 1 4 Treads 6 | 2 . . . . . 4 Leg . | . . . . . . . Wheel 4 | . . . 3 . 1 . Hover . | . . . . . . . Flight . | . . . . . . . Utility 23 | 1 4 . 2 9 1 6 Device 11 | . 2 . . 4 . 5 Storage 5 | 1 2 . 2 . . . Processor 4 | . . . . 2 1 1 Hackware 3 | . . . . 3 . . Protection . | . . . . . . . Artifact . | . . . . . . . Weapon 14 | 2 1 1 2 2 . 6 Energy Gun 3 | 1 1 . . . . 1 Energy Cannon 2 | . . . . . . 2 Ballistic Gun 5 | 1 . 1 1 . . 2 Ballistic Cannon 3 | . . . 1 1 . 1 Launcher . | . . . . . . . Special Weapon . | . . . . . . . Impact Weapon 1 | . . . . 1 . . Slashing Weapon . | . . . . . . . Piercing Weapon . | . . . . . . . Special Melee Weapon . | . . . . . . . Unidentified Prototypes . | . . . . . . . Parts Lost 24 | . . . . . . 24 Power 2 | . . . . . . 2 Propulsion 6 | . . . . . . 6 Utility 8 | . . . . . . 8 Weapon 8 | . . . . . . 8 Highest Loss Streak 23 | . . . . . . 23 To Critical Strikes 1 | . . . . . . 1 Average Backups 18 | . 10 14 18 23 29 27 Power 1 | . . 1 1 2 2 2 Propulsion 3 | . 1 3 3 4 4 4 Utility 9 | . 5 6 10 13 15 13 Weapon 2 | . 3 2 1 2 6 6 Tool/Special . | . . . . . . . Unused Backups 39 | . 8 6 8 . 1 16 Power 4 | . . . 2 . . 2 Propulsion 6 | . 1 1 3 . . 1 Utility 17 | . 2 2 1 . 1 11 Weapon 11 | . 5 3 2 . . 1 Tool/Special 1 | . . . . . . 1 Average Slot Usage (%) 84 | . 99 100 82 74 76 72 Engine 6 | . 14 14 6 . . . Core 5 | . . . 7 5 5 2 Treads 7 | . 28 28 2 . . 1 Wheel 17 | . . . 25 16 21 17 Device 9 | . 13 14 3 16 15 21 Storage 11 | . 14 14 14 5 5 4 Processor 1 | . . . . 6 8 6 Energy Gun 6 | . 14 14 6 . . . Ballistic Gun 7 | . 14 14 8 . . 3 Ballistic Cannon 6 | . . . 7 10 10 6 Peak Build Rating 113 | 6 9 11 30 82 92 113 Average Rating 32 | 4 8 9 19 79 89 94 On Entrance 32 | . 6 9 11 30 78 92 Avg Prop Armor Cover (%) . | . . . . . . . Naked Turns . | . . . . . . . Heaviest Build 258 | 14 31 33 217 237 232 258 Greatest Support 40 | 40 40 40 40 32 40 40 Greatest Overweight (x) 10 | . . . 10 7 5 6 Average Overweight (x) 4 | . . . 5 7 5 4 Largest Inventory Capacity 35 | 8 15 15 35 35 35 35 Average Capacity 26 | 6 12 15 30 35 35 33 Most Carried 35 | 1 15 15 34 31 35 35 Average Carried 20 | . 10 14 20 25 32 31 Final Capacity 35 | 8 15 15 35 35 35 5 Final Carried 35 | 1 15 15 34 26 35 5 Scrap Suit Usage (%) 14 | . . . . 25 100 94 Parts Cannibalized 4 | . . . . . . 4 Class Distribution -------------------- 39% | Mutant 38% | Hauler-Mutant 15% | Derelict-Assassin 4% | Hauler-Skirmisher Dominant Class ---------------- Mutant | -10/Materials Mutant | -10/Subcaves Hauler-Mutant | -7/Scraptown Derelict-Assassin | -5/Factory Derelict-Assassin | -4/Factory Hauler-Skirmisher | -4/Garrison Resources | -11 -10 -10 -7 -5 -4 -4 ----------- Run | Yrd Mat Sub Scr Fac Fac Gar Matter Collected 2865 | 203 639 43 296 1273 25 386 Remotely . | . . . . . . . Salvage Created 962 | . 430 . . 104 . 428 Parts 45 | . 24 . . 1 . 20 Haulers Intercepted 2 | . 2 . . . . . Recyclers Shooed . | . . . . . . . Parts Field Recycled . | . . . . . . . Retrieved Matter . | . . . . . . . Parts Self-Destructed 8 | . . 8 . . . . Prevented . | . . . . . . . Parts Restored . | . . . . . . . Kills | -11 -10 -10 -7 -5 -4 -4 ------- Run | Yrd Mat Sub Scr Fac Fac Gar Combat Hostiles Destroyed 14 | . 4 . . . . 10 Guns 11 | . 4 . . . . 7 Cannons 3 | . . . . . . 3 Classes Destroyed 7 | . 5 . . . . 2 Builder 1 | . 1 . . . . . Hauler 2 | . 2 . . . . . Recycler 3 | . 2 . . 1 . . Watcher 1 | . 1 . . . . . Swarmer 3 | . . . . . . 3 Grunt 7 | . 4 . . . . 3 Hunter 4 | . . . . . . 4 Best Kill Streak 6 | . 4 . . 1 . 6 Combat Bots Only 6 | . 2 . . . . 6 Max Kills in Single Turn 2 | . 1 . . 1 . 2 Gunslinging . | . . . . . . . Exploded . | . . . . . . . Melee . | . . . . . . . Uniques/NPCs Destroyed . | . . . . . . . Combat | -11 -10 -10 -7 -5 -4 -4 -------- Run | Yrd Mat Sub Scr Fac Fac Gar Hostile Shots Fired 495 | . 21 14 . 3 . 457 Missed 102 | . 8 5 . 1 . 88 Hits 393 | . 13 9 . 2 . 369 Projectile 393 | . 13 9 . 2 . 369 Critical Strikes 20 | . . 2 . . 1 17 Damage Taken 6789 | . 204 215 . 38 61 6271 Core 1293 | . 50 60 . 19 . 1164 Absorbed by Shields 47 | . . . . . . 47 Reduced by Siege Mode 399 | . . . . . . 399 Regen/Repaired (Parts) 31 | . . . . . . 31 Core Remaining (%) 84 | 100 . . 56 98 . . Volleys Fired 70 | . 22 11 . . . 37 Largest 3 | . 2 2 . . . 3 Hottest 152 | . 85 85 . . . 152 Shots Fired 174 | . 44 22 . . . 108 Gun 113 | . 44 22 . . . 47 Cannon 61 | . . . . . . 61 Launcher . | . . . . . . . Special . | . . . . . . . Kinetic 124 | . 22 11 . . . 91 Thermal 19 | . 8 11 . . . . Explosive . | . . . . . . . Electromagnetic 31 | . 14 . . . . 17 Robot Hit Streak 14 | . 14 8 . . . 11 Robot Miss Streak 7 | . 2 1 . . . 7 Penetration Max 2 | . . . . . . 2 Secondary Targets 1 | . 1 . . . . . Max Gunslinging Chain 1 | . 1 . . . . . Shots Hit Robots 118 | . 32 17 . 1 . 68 Core Hits 72 | . 16 1 . . . 55 Critical Kills 2 | . . . . . . 2 Critical Parts Destroyed 2 | . . . . . . 2 Critical Strikes 5 | . . . . . . 5 Destroy 4 | . . . . . . 4 Blast 1 | . . . . . . 1 Melee Attacks 4 | . . . . 4 . . Impact 4 | . . . . 4 . . Slashing . | . . . . . . . Piercing . | . . . . . . . Sneak Attacks 1 | . . . . 1 . . Combat Hostiles . | . . . . . . . Follow-up Attacks . | . . . . . . . Damage Inflicted 3036 | . 503 242 . 66 . 2225 Guns 1882 | . 469 242 . . . 1171 Cannons 1051 | . . . . . . 1051 Explosions 23 | . 23 . . . . . Melee 66 | . . . . 66 . . Ramming 14 | . 11 . . . . 3 Kinetic 2318 | . 192 114 . . . 2012 Thermal 280 | . 152 128 . . . . Explosive . | . . . . . . . Electromagnetic 358 | . 148 . . . . 210 Impact 66 | . . . . 66 . . Slashing . | . . . . . . . Piercing . | . . . . . . . Highest Corruption 10 | . . . . . . 10 Average Corruption 5 | . . . . . . 5 Corruption Purged . | . . . . . . . Corruption Blocked . | . . . . . . . Effects 2 | . . . . . . 2 Message Errors 1 | . . . . . . 1 Data Loss (minor) 1 | . . . . . . 1 Overload Shots . | . . . . . . . Overflow Damage 52 | . . . . 36 . 16 Projectiles 16 | . . . . . . 16 Explosions . | . . . . . . . Melee 36 | . . . . 36 . . Knockbacks 10 | . . . . . . 10 Impact . | . . . . . . . Kinetic 7 | . . . . . . 7 Secondary 3 | . . . . . . 3 Self-Inflicted Damage 41 | . 40 . . . . 1 Shots 1 | . 1 . . . . . Rammed 3 | . . . . . . 3 Targets Rammed 4 | . 1 . . . . 3 Kicked . | . . . . . . . Crushed 1 | . 1 . . . . . Highest Temperature 260 | . 60 . . . . 260 Average Temperature 87 | . 24 . . . . 114 Received Heat Transfer 468 | . 96 6 . 18 . 348 Siege Activations 1 | . . . . . . 1 Total Turns 58 | . . . . . . 58 Longest Duration 58 | . . . . . . 58 Martial Activations . | . . . . . . . Shielding Activations . | . . . . . . . Robots Disrupted . | . . . . . . . Combat Hostiles . | . . . . . . . Robots Corrupted 1 | . . . . 1 . . Combat Hostiles . | . . . . . . . Parts Fried 3 | . . . . 2 . 1 Impact Corruptions 2 | . . . . 2 . . Robots Melted . | . . . . . . . Combat Hostiles . | . . . . . . . Parts Melted 1 | . 1 . . . . . Heat Transferred 642 | . 346 296 . . . . Parts Sabotaged . | . . . . . . . Parts Stolen . | . . . . . . . Parts Stripped . | . . . . . . . Power Chain Reactions 1 | . 1 . . . . . Alert | -11 -10 -10 -7 -5 -4 -4 ------- Run | Yrd Mat Sub Scr Fac Fac Gar Maximum Alert Level 1 | . . . . . . 1 Low Security (%) 99 | 100 100 . . 100 100 95 Level 1 . | . . . . . . 4 Level 2 . | . . . . . . . Level 3 . | . . . . . . . Level 4 . | . . . . . . . Level 5 . | . . . . . . . High Security . | . . . . . . . Max Security . | . . . . . . . Peak Influence 221 | . 93 . . 182 76 221 Initial 76 | . . . . . 76 . Average 31 | . 13 . . 51 28 61 Influence Increases 847 | . 166 . . 324 36 321 Destroy 0b10 Robot/C 360 | . 80 . . 80 . 200 Destroy 0b10 Robot/NC 40 | . 30 . . 5 5 . Destroy Leader 58 | . 26 . . 10 2 20 Allied During Kill 24 | . . . . 24 . . Successful Hack 25 | . 15 . . 10 . . Disable Machine 75 | . 15 . . 45 15 . Destroy Structure 60 | . . . . 20 14 26 Partial Spotted 15 | . . . . . . 15 Lose Combat Pursuer 90 | . . . . 30 . 60 Active Sensor Use 100 | . . . . 100 . . Influence Decreases 766 | . 166 . . 168 192 240 Entered New Map 80 | . . . . . 80 . Time Decay 394 | . 166 . . 128 100 . Lost Part 240 | . . . . . . 240 Lost Ally 52 | . . . . 40 12 . Squads Dispatched 6 | . 3 . . 2 1 . Investigation 3 | . 2 . . 1 . . Extermination 2 | . . . . 1 1 . Reinforcement 1 | . 1 . . . . . Assault . | . . . . . . . Garrison . | . . . . . . . Intercept . | . . . . . . . Searches Triggered . | . . . . . . . Construction Impeded . | . . . . . . . Haulers Reinforced . | . . . . . . . Active Scanning Responses 2 | . . . . 1 . 1 Cargo Convoy Interrupts . | . . . . . . . Stealth | -11 -10 -10 -7 -5 -4 -4 --------- Run | Yrd Mat Sub Scr Fac Fac Gar Distress Signals . | . . . . . . . Communications Jammed . | . . . . . . . Distress Signals . | . . . . . . . Times Spotted 52 | . 12 6 . 3 2 29 Peak Tracking Total 15 | . 3 2 . 4 2 15 Tactical Retreats 3 | . . . . 1 . 2 Traps | -11 -10 -10 -7 -5 -4 -4 ------- Run | Yrd Mat Sub Scr Fac Fac Gar Traps Triggered 1 | . . . . . . 1 Indirectly . | . . . . . . . Trap Hack Attempts . | . . . . . . . Triggered . | . . . . . . . Disarmed . | . . . . . . . Reprogrammed . | . . . . . . . Reused . | . . . . . . . Traps Extracted . | . . . . . . . Installed . | . . . . . . . Triggered . | . . . . . . . Machines | -11 -10 -10 -7 -5 -4 -4 ---------- Run | Yrd Mat Sub Scr Fac Fac Gar Machines Disabled 5 | . 1 . . 3 1 . Max in Single Turn 1 | . 1 . . 1 . . Machines Repaired . | . . . . . . . Machines Dismantled . | . . . . . . . Machines Sabotaged . | . . . . . . . Overloaded Fab Kills . | . . . . . . . Hacking | -11 -10 -10 -7 -5 -4 -4 --------- Run | Yrd Mat Sub Scr Fac Fac Gar Machines Accessed 12 | . 5 . 2 4 1 . Terminals 6 | . 5 . . 1 . . Fabricators 1 | . . . . 1 . . Repair Stations . | . . . . . . . Recycling Units 1 | . . . . 1 . . Scanalyzers 1 | . . . . 1 . . Garrison Access 1 | . . . . . 1 . Total Hacks 49 | . 22 . 9 16 2 . Successful 30 | . 10 . 9 10 1 . Failed 18 | . 11 . . 6 1 . Catastrophic 3 | . . . . 3 . . Database Lockouts 1 | . 1 . . . . . Manual 24 | . 16 . . 8 . . Terminals 29 | . 22 . . 7 . . Fabricators 2 | . . . . 2 . . Repair Stations . | . . . . . . . Recycling Units 1 | . . . . 1 . . Scanalyzers 6 | . . . . 6 . . Garrison Access 2 | . . . . . 2 . Terminal Hacks 20 | . 9 . 9 2 . . Record 9 | . . . 9 . . . Robot Analysis 3 | . 3 . . . . . Prototype ID Bank 2 | . 2 . . . . . Terminal Index 1 | . . . . 1 . . Alert Level 1 | . . . . 1 . . Dispatch Records 1 | . 1 . . . . . Hauler Manifests 1 | . 1 . . . . . Zone Layout 2 | . 2 . . . . . Fabricator Hacks 1 | . . . . 1 . . Network Status 1 | . . . . 1 . . Repair Station Hacks . | . . . . . . . Recycling Unit Hacks . | . . . . . . . Scanalyzer 6 | . . . . 6 . . Insert Component 2 | . . . . 2 . . Analyze 2 | . . . . 2 . . Retrieve Study 2 | . . . . 2 . . Garrison Access Hacks 1 | . . . . . 1 . Unlock Access 1 | . . . . . 1 . Unauthorized Hacks 2 | . 1 . . 1 . . Terminals 2 | . 1 . . 1 . . Botnet 2 | . 1 . . 1 . . Fabricators . | . . . . . . . Repair Stations . | . . . . . . . Recycling Units . | . . . . . . . Scanalyzers . | . . . . . . . Garrison Access . | . . . . . . . Data Cores Recovered . | . . . . . . . Used . | . . . . . . . Hacking Detections 10 | . 5 . . 4 1 . Full Trace Events . | . . . . . . . Feedback Events . | . . . . . . . Feedback Blocked . | . . . . . . . Robot Schematics Acquired . | . . . . . . . Robots Built . | . . . . . . . Authchips . | . . . . . . . Time . | . . . . . . . Total Robot Build Rating . | . . . . . . . Part Schematics Acquired 2 | . . . . 2 . . Parts Built . | . . . . . . . Authchips . | . . . . . . . Time . | . . . . . . . Total Part Build Rating . | . . . . . . . Part Studies Acquired 2 | . . . . 2 . . Parts Repaired . | . . . . . . . Time . | . . . . . . . Parts Recycled . | . . . . . . . Recycled Matter . | . . . . . . . Retrieved Matter . | . . . . . . . Retrieved Components . | . . . . . . . Parts Scanalyzed 2 | . . . . 2 . . Part Schematics Acquired 2 | . . . . 2 . . Parts Damaged . | . . . . . . . Bothacking | -11 -10 -10 -7 -5 -4 -4 ------------ Run | Yrd Mat Sub Scr Fac Fac Gar Used RIF Installer . | . . . . . . . Robots Hacked . | . . . . . . . Non-combat . | . . . . . . . Combat . | . . . . . . . Robot Hacks Applied . | . . . . . . . Relay Couplers Released . | . . . . . . . Fabnet Peak Effective % . | . . . . . . . Robots Rewired . | . . . . . . . Allies Hacked . | . . . . . . . Hacks Repelled . | . . . . . . . Allies | -11 -10 -10 -7 -5 -4 -4 -------- Run | Yrd Mat Sub Scr Fac Fac Gar Total Allies 5 | . . . . 5 . . Largest Group 4 | . . . . 4 1 . Highest-Rated Group 188 | . . . . 188 47 . Highest-Rated Ally 47 | . . . . 47 47 . Initial UFD Resources 40 | . . . . 37 40 40 Total Orders . | . . . . . . . Ally Attacks 39 | . . . . 28 11 . Total Damage 638 | . . . . 417 221 . Kills 5 | . . . . 4 1 . Allies Corrupted . | . . . . . . . Allies Melted . | . . . . . . . Intel | -11 -10 -10 -7 -5 -4 -4 ------- Run | Yrd Mat Sub Scr Fac Fac Gar Active Infowar (turns) 1981 | . 501 . . 646 403 431 Optics 405 | . . . . . 316 89 A.S.S. 1480 | . . . . 646 403 431 Terrain 1124 | . . . . 634 403 87 Structural 501 | . 501 . . . . . T.N.C. 158 | . . . . 158 . . Robot Analysis Total 3 | . 3 . . . . . Derelict Logs Recovered 6 | . . 1 5 . . . Drone Launches . | . . . . . . . Drone Recoveries . | . . . . . . . Exploration | -11 -10 -10 -7 -5 -4 -4 ------------- Run | Yrd Mat Sub Scr Fac Fac Gar Turns Passed 6599 | 88 1256 239 3524 646 403 443 Spaces Moved 3472 | 52 698 106 1929 312 264 111 Core 11 | 4 . . . . . 7 Treads 1053 | 48 698 106 201 . . . Legs . | . . . . . . . Wheels 2408 | . . . 1728 312 264 104 Hover . | . . . . . . . Flight . | . . . . . . . Fastest Speed 50 | 50 160 160 80 178 137 50 Average Speed 170 | 151 160 160 180 178 137 136 Slowest Speed 230 | 160 160 160 230 188 137 150 Overloaded Moves . | . . . . . . . Propulsion Burnouts . | . . . . . . . Robots Hopped . | . . . . . . . Potential Cave-ins . | . . . . . . . Cave-ins Triggered . | . . . . . . . Exploration Rate (%) 30 | 4 91 10 87 5 4 15 Regions Visited 6 Branch Regions 2 Pre-discovered Areas 4 | . . . 4 . . . Known Exits Taken 2 | . . . . 1 1 . Unknown Exits Taken 4 | 1 1 1 1 . . . Scrap Searched 6 | . . . 6 . . . Spaces Dug 2 | . . . . 2 . . Terrain Destroyed 14 | . . . . 2 . 12 Melee 2 | . . . . 2 . . Projectile 12 | . . . . . . 12 AOE . | . . . . . . . Terrain Rammed . | . . . . . . . Walls Destroyed . | . . . . . . . Machines Disabled . | . . . . . . . Actions | -11 -10 -10 -7 -5 -4 -4 --------- Run | Yrd Mat Sub Scr Fac Fac Gar Total 4038 | 58 800 158 1979 397 307 339 Wait 292 | . 36 21 . 54 31 150 Move 3466 | 51 697 105 1928 311 263 111 Hop . | . . . . . . . Pick Up 86 | 1 24 10 30 9 10 2 Fast Attach 13 | 6 2 . 3 1 . 1 Attach 27 | . . . . 9 2 16 Detach 8 | . 1 . . 2 . 5 Swap 17 | . 4 1 5 3 . 4 Drop 44 | . 13 10 13 4 1 3 Fire 70 | . 22 11 . . . 37 Melee 4 | . . . . 4 . . Ram 2 | . . . . . . 2 Kick . | . . . . . . . Crush 2 | . 1 . . . . 1 Escape Stasis 7 | . . . . . . 7 Rewire . | . . . . . . . Trap . | . . . . . . . Miscellaneous . | . . . . . . . Route ------- -11/Scrapyard -10/Materials (discovered 6 exits: [*Mat x3] / [*Min x2] / [*Sub]) -10/Subcaves (discovered 2 exits: *Scr x2) -7/Scraptown (discovered 2 exits: *Fac x2) -5/Factory (discovered 3 exits: *Fac x3) -4/Factory -4/Garrison History --------- Turn | Location | Event 2 | -11/Scrapyard | Discovered new exit (range 16) 89 | -11/Scrapyard | Entered Materials 90 | -10/Materials | Met a group of wandering Federalists 302 | -10/Materials | Discovered new exit (range 7) 318 | -10/Materials | Build established: Mutant 356 | -10/Materials | Discovered new exit (range 16) 424 | -10/Materials | Discovered new exit (range 16) 653 | -10/Materials | Central database locked down 653 | -10/Materials | Discovered new exit (range 19) 725 | -10/Materials | Discovered new exit (range 11) 1244 | -10/Materials | Discovered new exit (range 6) 1345 | -10/Materials | Entered Subcaves 1346 | -10/Subcaves | Continued accompanying wandering Federalists (4) 1346 | -10/Subcaves | Approached by a straggling Scientist 1422 | -10/Subcaves | Learned Materials stockpile data 1572 | -10/Subcaves | Wandering Federalist uncovered a shortcut to Scraptown 1584 | -10/Subcaves | Entered Scraptown 1703 | -7/Scraptown | Scanned Subdweller tech in exchange for log data 1706 | -7/Scraptown | Learned location of Quarantine (-2) 1708 | -7/Scraptown | Learned 12 Factory zone layouts 1709 | -7/Scraptown | Learned Research garrison access intel 1711 | -7/Scraptown | Learned location of Testing (-3) 1712 | -7/Scraptown | Learned Research non-interactive machine intel 1734 | -7/Scraptown | Discovered new exit (range 11) 1974 | -7/Scraptown | Visited Shadow of the Wyrm 1988 | -7/Scraptown | Visited SPCMW 2024 | -7/Scraptown | Visited Assassins FH 2043 | -7/Scraptown | Visited Red Mages 2088 | -7/Scraptown | Visited Cyclists 2145 | -7/Scraptown | Visited UFD Registry 2145 | -7/Scraptown | Registered with UFD as "Fibernuts" 2173 | -7/Scraptown | Visited Infowarlord's Domain 2193 | -7/Scraptown | Visited Derelict Rescue Squad 2208 | -7/Scraptown | Visited LU-1G1's Boring Crew 2282 | -7/Scraptown | Visited Chapter 10 2309 | -7/Scraptown | Visited Research Penetration Think Tank 2332 | -7/Scraptown | Visited Scrap Suit Storage 2365 | -7/Scraptown | Visited Scrapoid Research Area 2389 | -7/Scraptown | Visited Junk Repository 2422 | -7/Scraptown | Visited DA-N13 Charitable Foundation 2427 | -7/Scraptown | Found DCF Scrap (28 items) 2454 | -7/Scraptown | Visited Scrapoid Pod Storage 2460 | -7/Scraptown | Found Scrapoid Pod 2874 | -7/Scraptown | Build established: Hauler-Mutant 2926 | -7/Scraptown | Found Active Sensor Suite 2978 | -7/Scraptown | Found DRS Beacon 3384 | -7/Scraptown | Entered Cyclist Reading Room 3390 | -7/Scraptown | Learned location of Zion (-7) 3428 | -7/Scraptown | Visited Spacefarers 3511 | -7/Scraptown | Heard Great Nut preacher, LISTEN AND RECITE! 3549 | -7/Scraptown | Found Relay Coupler [Proto] 4922 | -7/Scraptown | Met Optimus 4922 | -7/Scraptown | Accepted into 0bPrime 5027 | -7/Scraptown | Discovered new exit (range 5) 5071 | -7/Scraptown | Found Scrap Suit 5108 | -7/Scraptown | Entered Factory 5108 | -5/Factory | Evolved 10 slots: Propulsion x1, Utility x8, Weapon x1 5109 | -5/Factory | Identified exit to Factory 5567 | -5/Factory | Build established: Derelict-Assassin 5573 | -5/Factory | Scrapoid Pod released 05F07-D (x5) 5588 | -5/Factory | Found Scrap Suit 5754 | -5/Factory | Entered another Factory area 5754 | -4/Factory | Accompanied by 1 ally 5754 | -4/Factory | Evolved 2 slots: Propulsion x1, Utility x1 5787 | -4/Factory | Identified exit to Garrison 6157 | -4/Factory | Entered Garrison 6586 | -4/Garrison | Core integrity fell below 50% 6591 | -4/Garrison | Core integrity fell below 20% 6595 | -4/Garrison | System corruption reached 10% 6600 | -4/Garrison | Destroyed by G-67 Veteran with Plasma Rifle Last Messages --------------- 06589_ Slug penetrates P-70 Sage. 06590_ Penetrated by Slug. 06591_ Acquired 14 matter. 06592_ Triggered Stasis Trap. 06592_ A bubble of rippling energy engulfs the area. 06592_ Field strength at 94. 06592_ Field strength at 88. 06593_ Field strength at 82. 06594_ Field strength at 55. 06595_ Field strength at 49. 06596_ Field strength at 43. 06597_ System corrupted: Component data lost. 06597_ H-77 Assassin destroyed. 06597_ Critical hit (Burn: +26). 06597_ Field strength at 16. 06598_ Field strength at 5. 06599_ Stasis field depleted. 06600_ Slammed into G-67 Veteran. [Achievement: I Was Wrong!] Map ----- +----------------------------------------------------+ | ???????????????# #?????????????????????????????? | | ???????????????### #?????????????????????????????? | | ################## ##????????????????????????????? | | #????????????????????????????? | | #????????????????????????????? | | ###### ######### #????????????????????????????? | | ?????# #???????# #????????????????????????????? | | ?????#####???????# #????????????????????????????? | | ?????????????????# #????????????????????????????? | | ?????????????????# #????????????????????????????? | | ?????????????????# #????????????????????????????? | | ?????????????????# #????????????????????????????? | | ?????????????????# #????????????????????????????? | | ?????????????????# #????????????????????????????? | | ???????????####### #????????????????????????????? | | ???????????# =##% #????????????????????????????? | | ???????????# [ [" ####?????????????????????????? | | ???????????# = = " #?????????????????????????? | | ???????????# !## ####?????????????????????????? | | ???????????#####"# #????????????????????????????? | | ????????????????## #????????????????????????????? | | ?????????????????# #??????????????? #???????????? | | ?????????????????# #????????#### ###?????????? | | ?????????????????# ######## ????????? | | ?????????????????+/!p! gx ????????? | | ?????????????????#!=gp% @g ????????? | | ?????????????????#hg]####### ## #???????????? | | ????????????????#=# =%%%*###[ #?????????????????? | | ????????????????# #*=%=*%%=[%[ ?????????????? | | ????????????????#?#%######=%= ?????????????? | | ?????????????????#%#!??????? % ???????????????? | | ????????????????#!!?&?????????? %????????????????? | | ????????????????##!? #???????????????????????????? | | ????????????????? #?# ???????????????????????????? | | ????????????????? ??? ???????????????????????????? | | ????????????????# ??? #??????????????????????????? | | ????????????????##???##??????????????????????????? | | ?????????????????????????????????????????????????? | | ?????????????????????????????????????????????????? | | ?????????????????????????????????????????????????? | | ?????????????????????????????????????????????????? | | ?????????????????????????????????????????????????? | | ?????????????????????????????????????????????????? | | ?????????????????????????????????????????????????? | | ?????????????????????????????????????????????????? | | ?????????????????????????????????????????????????? | | ?????????????????????????????????????????????????? | | ?????????????????????????????????????????????????? | | ?????????????????????????????????????????????????? | | ?????????????????????????????????????????????????? | +----------------------------------------------------+ Best States ------------- Heat Dissipation 57 Energy Generation 21 Energy Capacity 250 Matter Stores 300 Matter Capacity 300 Sight Range 20 Robot Scan Range 20 Terrain Scan Range 20 Terrain Scan Density 210 Weapon Cycling 15 Evasion (%) 50 Targeting Accuracy 6 Recoil Reduction 4 Defensive Hacking 11 Item Schematics ----------------- Ovr. Scrapsphere | -5/Factory | Scanalyzed Datajack | -5/Factory | Scanalyzed Robot Schematics ------------------ None Fabricated ------------ Nothing Repaired ---------- Nothing Studied --------- Wheel | -5/Factory | Hacked Arm. Wheel | -5/Factory | Hacked Alien Tech Used ----------------- None Achievements -------------- I Was Wrong! Challenges ------------ None Game ------ Seed AdvancedRecoilTreads Manual? 0 Play Time 00:58:30 Cumulative 207.8 hours Start 2026.08.01 @ 15:59:40 End 2026.08.01 @ 18:14:51 Sessions 5 Manual Loads 0 Difficulty Rogue Special Mode None Game No. 121 Rogue 121 Adventurer 0 Explorer 0 Win Type - Total 4 Types 4/0/0/0/0/0/0/0/0/0 Lore% 75 Gallery% 65 Achievement% 57 Wizard Run 0 Options --------- Layout 1 ASCII 0 Keyboard 0 Movement Numpad Keybinds 0 Fullscreen 1 Font 24/Smallcaps Map View 50x35 Zoom Use 0% Tactical HUD 1 Map Filters NONE Filters NONE Steam 1 RUN: 353ba211-65ba-417a-86db-ac09752ff479